bitfinex/quotes_ETHUSD_20251130
["timestamp","ask_amount","ask_price","bid_price","bid_amount"]
[1764474107830,0.0009,3000.3,2999.9,0.212]
[1764474108033,3.3329705,3000.4,2999.9,0.212]
[1764474109062,3.3329705,3000.4,3000.0,0.03333333]
[1764474109765,6.66566125,3000.5,3000.0,0.03333333]
[1764474109937,0.0944,3000.1,3000.0,0.03333333]
[1764474110270,0.0944,3000.1,2999.6,0.212]
[1764474110468,0.0935,2999.7,2999.6,0.212]
[1764474110978,0.451,3000.1,2999.6,0.212]
[1764474111861,3.33333333,3000.0,2999.6,0.212]
[1764474112066,4.04509331,3000.0,2999.6,0.212]
[1764474112372,0.1821,2999.9,2999.6,0.212]
[1764474112756,0.0944,2999.7,2999.6,0.212]
[1764474113142,0.1821,2999.9,2999.6,0.212]
[1764474114383,3.51555018,2999.9,2999.6,0.212]
[1764474115060,0.098,2999.7,2999.6,0.212]
[1764474115250,0.098,2999.7,2999.3,0.212]
[1764474115451,0.5455,2999.7,2999.4,0.70781498]
[1764474115676,0.5455,2999.7,2999.5,0.70781498]
[1764474115876,0.098,2999.7,2999.3,0.212]
[1764474116187,4.57391691,2999.7,2999.3,0.212]
[1764474116359,0.0045,2999.4,2999.3,0.212]
[1764474116866,0.0045,2999.4,2999.3,0.70847584]
[1764474117379,0.0045,2999.4,2999.1,0.70847584]
[1764474117592,0.0045,2999.4,2999.2,0.70847584]
[1764474117755,0.0045,2999.4,2999.3,0.70847584]
[1764474118075,0.0045,2999.4,2999.1,0.70847584]
[1764474118260,0.0045,2999.4,2999.2,0.70847584]
[1764474118461,0.0045,2999.4,2999.3,0.70847584]
[1764474118807,0.0045,2999.4,2999.2,0.70847584]
[1764474118982,0.0045,2999.4,2999.3,0.70847584]
[1764474119281,3.33386224,2999.6,2999.3,0.70847584]
[1764474119467,4.07007609,2999.6,2999.4,0.70847584]
[1764474119662,4.07007609,2999.6,2999.5,0.70847584]
[1764474119859,4.07007609,2999.6,2999.3,0.70847584]
[1764474120061,4.07007609,2999.6,2999.4,0.70847584]
[1764474120264,4.07007609,2999.6,2999.5,0.70847584]
[1764474120465,3.42826224,2999.6,2999.5,0.70847584]
[1764474121580,4.05879119,3000.2,2999.5,1.66671472]
[1764474121752,3.35836537,3000.1,2999.7,0.4525]
[1764474121947,3.33255573,3000.7,2999.8,0.70847584]
[1764474122270,0.72559411,3000.4,3000.0,0.4525]
[1764474122471,0.02514315,3000.3,3000.1,0.70847584]
[1764474122797,0.02514315,3000.3,3000.2,0.70847584]
[1764474122955,0.47974315,3000.3,3000.2,0.70847584]
[1764474123157,0.57414315,3000.3,3000.2,0.70847584]
[1764474124457,4.63273729,3000.3,3000.2,0.70847584]
[1764474124663,5.8388607,3000.3,3000.2,0.70847584]
[1764474126158,10.0,3005.1,3000.2,4.96648696]
[1764474126159,0.1071,3001.6,3000.2,4.96648696]
[1764474126486,0.5776,3001.6,3001.4,0.89283641]
[1764474126657,0.5776,3001.6,3001.5,0.70847584]
[1764474126854,4.30026564,3001.6,3001.5,0.70847584]
[1764474127275,4.40386564,3001.6,3001.5,0.70847584]
[1764474127479,1.07230914,3001.6,3001.5,0.70847584]
[1764474127679,3.93336564,3001.6,3001.5,0.70847584]
[1764474128615,0.60180914,3001.6,3001.5,0.70847584]
[1764474128758,0.39110914,3001.6,3001.5,0.70847584]
[1764474128965,0.002,3001.6,3001.5,0.70847584]
[1764474129591,0.002,3001.6,3001.5,1.16097584]
[1764474130793,0.0807,3001.6,3001.5,0.70847584]
[1764474131997,0.5472,3001.6,3001.5,0.70847584]
[1764474132193,0.0807,3001.6,3001.5,0.70847584]
[1764474132496,0.002,3001.6,3001.5,0.70847584]
[1764474133403,0.002,3001.6,3001.5,1.64357584]
[1764474133900,0.5472,3001.6,3001.5,0.70847584]
[1764474134077,3.8787565,3001.6,3001.5,0.70847584]
[1764474134278,0.79271995,3001.6,3001.5,0.70847584]
[1764474134479,0.0715,3001.6,3001.5,0.70847584]
[1764474134680,3.4030565,3001.6,3001.5,0.70847584]
[1764474134997,0.0715,3001.6,3001.5,0.70847584]
[1764474135395,3.4030565,3001.6,3001.5,0.70847584]
[1764474135901,0.002,3001.6,3001.5,1.16557584]
[1764474138009,0.002,3001.6,3001.5,0.70847584]
[1764474138210,1.21387071,3001.6,3001.0,0.89283641]
[1764474138416,0.0048,3001.4,3001.1,0.92347697]
[1764474138700,3.33658129,3001.4,3001.2,0.71147697]
[1764474138902,4.11824248,3001.4,3001.0,0.212]
[1764474139071,4.11824248,3001.4,3001.1,0.7115729]
[1764474139277,0.78646119,3001.4,3001.2,0.7115729]
[1764474139611,4.11824314,3001.4,3000.9,0.212]
[1764474139775,4.11824314,3001.4,3001.0,0.71152785]
[1764474140097,0.93960431,3001.3,3001.1,0.71152785]
[1764474140303,0.45980431,3001.3,3001.2,0.71152785]
[1764474140706,0.52930431,3001.3,3001.2,0.71152785]
[1764474141607,3.86119382,3001.3,3001.2,0.71152785]
[1764474143074,3.86119382,3001.3,3000.8,1.58743641]
[1764474143404,3.86119382,3001.3,3000.9,0.71152821]
[1764474143614,3.86119382,3001.3,3001.0,0.71152821]
[1764474143821,3.86119382,3001.3,3001.1,0.71152821]
[1764474143998,3.86119382,3001.3,3001.2,0.71152821]
[1764474144202,3.86119382,3001.3,3000.8,1.58743641]
[1764474144512,3.86119382,3001.3,3000.9,0.71166552]
[1764474144717,3.86119382,3001.3,3001.0,0.71166552]
[1764474145020,0.52930431,3001.3,3001.1,0.71166552]
[1764474145231,0.0695,3001.3,3000.9,3.83354903]
[1764474145400,0.0695,3001.3,3001.0,0.71182371]
[1764474145606,3.33178415,3001.4,3001.1,0.71182371]
[1764474145806,3.33178415,3001.4,3001.0,0.4679]
[1764474146038,3.33178415,3001.4,3001.1,0.71182078]
[1764474146336,3.33178415,3001.4,3001.2,0.71182078]
[1764474146638,3.33178415,3001.4,3001.0,0.4679]
[1764474146934,3.33178415,3001.4,3001.1,0.71205565]
[1764474147134,7.00106847,3001.6,3001.2,0.71205565]
[1764474147435,0.74808685,3001.5,3001.0,0.4679]
[1764474147624,0.74808685,3001.5,3001.1,0.71235763]
[1764474147822,0.74808685,3001.5,3001.2,0.74567763]
[1764474148032,0.002,3001.6,3001.3,0.71226467]
[1764474148210,0.002,3001.3,3001.2,0.4679]
[1764474148410,0.002,3001.3,3001.2,0.71261268]
[1764474148610,0.002,3001.3,3001.2,1.18471268]
[1764474148877,0.0895,3001.3,3001.2,0.71261268]
[1764474150034,0.002,3001.3,3001.2,0.71261268]
[1764474150537,3.88318951,3001.3,3001.2,0.71261268]
[1764474151636,8.66216217,3001.3,3000.8,0.89283641]
[1764474151840,0.79509411,3001.2,3000.9,0.71427193]
[1764474152040,0.79509411,3001.2,3000.6,0.212]
[1764474152245,0.79509411,3001.2,3000.7,0.71427804]
[1764474152409,1.56238142,3001.2,3000.8,0.71427804]
[1764474152604,1.56238142,3001.2,3000.9,0.71427804]
[1764474152605,1.49288142,3001.2,3000.9,0.71427804]
[1764474152807,1.49288142,3001.2,3000.6,0.6883]
[1764474153011,0.4616,3001.1,3000.7,0.71463939]
[1764474153313,0.4616,3001.1,3000.8,0.71463939]
[1764474153314,0.40744814,3001.0,3000.8,0.71463939]
[1764474153513,0.0875,3000.6,3000.5,0.89283641]
[1764474153715,0.0875,3000.6,3000.5,1.6079978]
[1764474155327,0.0875,3000.6,3000.5,0.71516139]
[1764474155846,0.0875,3000.6,3000.5,1.61056923]
[1764474156848,3.42016679,3000.6,3000.5,1.61056923]
[1764474157450,0.0875,3000.6,3000.5,0.71516139]
[1764474158021,3.42016679,3000.6,3000.5,0.71516139]
[1764474158248,3.76218347,3000.6,3000.5,0.71516139]
[1764474160147,3.67468347,3000.6,3000.5,0.71516139]
[1764474160646,3.33266679,3000.6,3000.5,0.71516139]
[1764474161837,3.33244468,3000.8,3000.5,1.18726139]
[1764474162037,3.33244468,3000.8,3000.6,0.71516139]
[1764474162237,3.33244468,3000.8,3000.7,0.71516139]
[1764474162853,6.75258936,3000.8,3000.3,1.37270784]
[1764474163052,0.68594894,3000.7,3000.3,0.89640784]
[1764474163351,3.42014468,3000.8,3000.4,0.4763]
[1764474163554,3.4392423,3000.9,3000.4,0.4763]
[1764474163727,3.6512423,3000.9,3000.4,0.4763]
[1764474164535,3.6512423,3000.9,3000.4,1.37170784]
[1764474164735,4.36913472,3000.9,3000.4,1.37170784]
[1764474164947,4.36913472,3000.9,3000.5,0.4763]
[1764474165257,7.70147702,3000.9,3000.5,0.4763]
[1764474166026,4.36913472,3000.9,3000.5,0.4763]
[1764474166227,7.70147702,3000.9,3000.5,0.4763]
[1764474166762,7.70347702,3000.9,3000.5,0.4763]
[1764474167242,4.37113472,3000.9,3000.5,0.4763]
[1764474167448,3.33436125,3000.9,3000.6,0.4763]
[1764474168025,0.002,3000.9,3000.6,0.4763]
[1764474168224,0.002,3000.9,3000.4,4.7045819]
[1764474168427,0.002,3000.9,3000.8,0.4721]
[1764474168978,0.002,3000.9,3000.8,0.9484]
[1764474172459,0.002,3000.9,3000.8,4.28084468]
[1764474172651,0.002,3000.9,3000.8,5.17625252]
[1764474173384,0.002,3000.9,3000.8,1.84380784]
[1764474173550,0.002,3000.9,3000.8,4.28084468]
[1764474173731,0.002,3000.9,3000.8,4.827974]
[1764474174768,0.002,3000.9,3000.8,5.039974]
[1764474175334,0.002,3000.9,3000.8,6.23042254]
[1764474177564,0.002,3000.9,3000.8,5.039974]
[1764474177940,0.002,3000.9,3000.8,5.07329844]
[1764474180446,0.002,3000.9,3000.8,10.84540867]
[1764474180645,0.002,3000.9,3000.8,9.01872485]
[1764474181570,0.002,3000.9,3000.8,9.74431896]
[1764474182943,0.1322,3003.9,3002.0,3.24076437]
[1764474183141,0.1071,3004.8,3003.9,0.4904]
[1764474183389,0.454,3004.7,3003.9,1.107904]
[1764474183540,0.1071,3004.8,3003.9,1.576404]
[1764474183741,0.1071,3004.8,3003.9,1.82326615]
[1764474183966,3.24076437,3004.5,3003.9,0.212]
[1764474184178,0.1071,3004.8,3003.9,0.4904]
[1764474184366,0.454,3004.6,3003.9,1.1709]
[1764474184685,0.454,3004.7,3003.9,0.7024]
[1764474184869,0.454,3004.7,3003.9,4.03140562]
[1764474185274,0.454,3004.6,3003.9,4.03140562]
[1764474185457,0.454,3004.6,3003.9,4.49990562]
[1764474186672,0.454,3004.6,3003.9,1.1709]
[1764474186839,0.454,3004.6,3003.9,4.49990562]
[1764474187482,0.454,3004.6,3003.9,0.4904]
[1764474187685,0.454,3004.6,3003.1,4.22210743]
[1764474187686,0.454,3004.4,3003.6,0.4685]
[1764474187986,0.0951,3003.7,3003.1,1.19409411]
[1764474188288,0.0951,3003.7,3003.2,0.6805]
[1764474188648,0.0951,3003.7,3003.2,0.212]
[1764474188862,0.1319,3003.9,3003.3,3.32967069]
[1764474189062,0.454,3003.8,3002.9,0.72559411]
[1764474189248,0.454,3003.8,3003.0,0.212]
[1764474189447,1.19585519,3003.8,3003.0,0.212]
[1764474189951,1.19585519,3003.8,3002.9,4.52420833]
[1764474189952,0.454,3003.7,3002.9,4.05570833]
[1764474190148,0.454,3003.7,3003.1,0.212]
[1764474190782,0.0954,3003.2,3003.1,0.212]
[1764474191250,0.0954,3003.2,3002.9,4.05560151]
[1764474191495,0.0954,3003.2,3003.0,0.212]
[1764474192074,0.4504,3003.5,3003.0,0.212]
[1764474192850,3.7831717,3003.8,3003.0,4.0104457]
[1764474193045,0.0954,3003.1,3002.7,0.212]
[1764474193845,0.46406658,3003.7,3003.0,0.4904]
[1764474194056,3.91491119,3003.9,3003.1,0.90319892]
[1764474194462,0.78993433,3003.8,3003.1,0.24529892]
[1764474194661,0.0954,3003.2,3003.1,0.24529892]
[1764474195081,0.0954,3003.2,3003.1,3.57519136]
[1764474195656,0.4504,3003.7,3003.1,3.57519136]
[1764474195995,0.8415344,3003.7,3003.1,6.9050838]
[1764474196177,0.8415344,3003.7,3003.1,3.54189244]
[1764474196350,0.8415344,3003.7,3003.1,3.57519136]
[1764474196351,0.4504,3003.7,3003.1,3.57519136]
[1764474196550,0.4504,3003.7,3003.2,0.03329781]
[1764474196750,0.1319,3003.9,3003.3,0.0332967]
[1764474197151,0.1319,3003.9,3003.4,3.32955983]
[1764474197683,0.0954,3003.5,3003.2,3.36307809]
[1764474197988,4.25085051,3003.9,3003.3,0.212]
[1764474198165,0.454,3003.8,3003.3,0.212]
[1764474198857,0.1319,3003.9,3003.3,0.6805]
[1764474199058,0.1319,3003.9,3003.4,3.32955983]
[1764474199665,0.5859,3003.9,3003.4,3.32955983]
[1764474201186,0.6097,3003.9,3003.3,3.54165472]
[1764474202884,0.17471032,3004.0,3003.8,0.4666]
[1764474203085,0.17471032,3004.0,3003.9,4.00760562]
[1764474203459,0.17471032,3004.0,3003.9,4.46380562]
[1764474203858,0.72201032,3004.0,3003.8,0.212]
[1764474204061,0.2213,3003.9,3003.7,0.212]
[1764474204669,0.17671032,3004.0,3003.8,0.4666]
[1764474204868,0.17671032,3004.0,3003.9,0.4666]
[1764474205086,0.17671032,3004.0,3003.9,4.25180562]
[1764474205558,0.17671032,3004.0,3003.9,4.86930962]
[1764474205894,0.17671032,3004.0,3003.9,7.00350321]
[1764474206898,0.17671032,3004.0,3003.9,7.33598569]
[1764474207415,0.17671032,3004.0,3003.9,5.89928569]
[1764474207780,0.17671032,3004.0,3003.9,6.11128569]
[1764474208410,0.17671032,3004.0,3003.9,7.30090905]
[1764474209500,0.17671032,3004.0,3003.9,6.84470905]
[1764474210004,0.17671032,3004.0,3003.9,7.30090905]
[1764474210502,0.17671032,3004.0,3003.9,6.44376817]
[1764474211298,0.17671032,3004.0,3003.9,7.89572073]
[1764474211506,0.17671032,3004.0,3003.9,7.68372073]
[1764474211682,0.17671032,3004.0,3003.9,7.89572073]
[1764474211997,0.17671032,3004.0,3003.9,7.68372073]
[1764474212180,0.17671032,3004.0,3003.9,6.11128569]
[1764474212369,0.17671032,3004.0,3003.9,5.70578169]
[1764474212570,0.17671032,3004.0,3003.9,7.03007934]
[1764474212772,0.5221,3005.6,3004.3,0.405504]
[1764474213078,0.5221,3005.6,3005.0,0.88963315]
[1764474213273,0.51576405,3005.6,3005.1,0.212]
[1764474213493,0.51576405,3005.6,3005.1,3.53965536]
[1764474213696,0.4638,3005.5,3005.1,0.212]
[1764474213882,0.4638,3005.5,3005.1,1.10163315]
[1764474214089,0.63431582,3005.5,3005.1,0.212]
[1764474214871,0.63431582,3005.5,3005.1,3.53965697]
[1764474215071,0.63431582,3005.5,3005.1,0.212]
[1764474215511,0.63431582,3005.5,3005.1,3.53967146]
[1764474215695,0.63431582,3005.5,3005.1,0.212]
[1764474215873,0.0583,3005.6,3005.1,3.53966154]
[1764474216076,3.84923377,3005.6,3005.1,0.212]
[1764474216273,0.5221,3005.6,3005.1,0.212]
[1764474216472,0.5221,3005.6,3005.0,0.88963315]
[1764474216473,0.208,3005.2,3005.0,0.88963315]
[1764474216801,0.0583,3005.6,3005.0,0.212]
[1764474217024,0.5157596,3005.6,3005.1,0.4666]
[1764474217300,3.84289119,3005.6,3005.1,0.4666]
[1764474217477,4.30669119,3005.6,3005.1,0.4666]
[1764474217675,0.1821,3006.0,3005.1,0.4666]
[1764474217874,0.0853,3005.2,3005.1,0.212]
[1764474218673,0.46,3005.5,3005.1,0.6786]
[1764474219509,0.72559411,3005.9,3005.1,0.6786]
[1764474219510,0.4638,3006.6,3005.5,0.405504]
[1764474219801,0.4638,3006.6,3005.6,1.73090417]
[1764474220002,1.18939411,3006.6,3005.6,1.55473045]
[1764474220306,1.18939411,3006.6,3005.7,0.4562]
[1764474220489,0.4638,3006.6,3005.8,0.405504]
[1764474220686,0.4638,3006.6,3005.9,0.212]
[1764474221002,0.0853,3006.0,3005.9,0.212]
[1764474221396,0.0853,3006.0,3005.8,0.212]
[1764474221706,0.0046,3005.9,3005.8,0.212]
[1764474222109,0.0046,3005.9,3005.5,0.88653045]
[1764474222110,0.6505,3005.9,3005.5,0.88653045]
[1764474222312,0.0808,3005.6,3005.3,0.88653045]
[1764474222613,0.0054,3005.4,3005.2,0.9198061]
[1764474222914,0.0054,3005.4,3005.3,0.212]
[1764474223077,0.0054,3005.4,3005.2,0.88653045]
[1764474223278,0.0054,3005.4,3005.3,0.212]
[1764474223500,0.0054,3005.4,3005.1,0.91980721]
[1764474223711,0.0054,3005.4,3005.2,0.212]
[1764474224075,0.08,3005.3,3005.2,0.212]
[1764474225114,0.33325441,3005.4,3005.2,0.212]
[1764474225289,1.18939411,3005.6,3005.2,0.212]
[1764474225480,0.72559411,3005.7,3005.2,0.212]
[1764474225682,1.18939411,3005.7,3005.2,0.212]
[1764474225914,0.4638,3005.7,3005.2,0.212]
[1764474226485,0.1821,3005.9,3005.2,3.99567419]
[1764474226915,3.50890169,3005.9,3005.2,3.99567419]
[1764474227104,0.72559411,3006.2,3005.3,0.48947454]
[1764474227300,7.37851141,3006.2,3005.3,0.48947454]
[1764474227618,7.37851141,3006.2,3005.3,3.81690705]
[1764474227827,0.002,3006.6,3006.1,0.6573]
[1764474228139,0.002,3006.6,3006.5,0.4666]
[1764474228284,0.002,3006.6,3006.5,0.9228]
[1764474228487,0.002,3006.6,3006.5,1.328304]
[1764474228690,0.002,3006.6,3006.5,1.95482934]
[1764474229585,0.002,3006.6,3006.5,5.38002483]
[1764474230182,4.23219465,3008.1,3006.5,5.38002483]
[1764474230183,0.6084,3008.5,3006.8,0.33248248]
[1764474230411,0.1446,3008.5,3007.0,0.8834162]
[1764474230587,0.6084,3008.5,3007.3,0.405504]
[1764474230788,0.6084,3008.5,3007.4,0.212]
[1764474231028,0.4638,3008.4,3007.4,0.212]
[1764474231325,0.4638,3008.4,3007.5,0.212]
[1764474231925,0.1446,3008.5,3007.5,0.212]
[1764474231926,0.72559411,3008.2,3007.5,0.212]
[1764474232136,0.1446,3008.5,3007.5,7.31822965]
[1764474232343,0.1446,3008.5,3007.5,8.38257191]
[1764474232491,0.1446,3008.5,3007.6,0.875604]
[1764474232897,0.1446,3008.5,3007.8,0.405504]
[1764474233105,0.1446,3008.5,3007.9,0.212]
[1764474233292,0.1446,3008.5,3008.0,0.212]
[1764474234613,0.1446,3008.5,3007.7,0.4701]
[1764474234614,1.0181235,3008.5,3007.7,0.4701]
[1764474234928,0.6234,3008.5,3008.0,0.212]
[1764474235991,0.1446,3008.5,3008.0,0.212]
[1764474236334,0.4934,3008.1,3007.8,0.212]
[1764474236493,6.79249266,3008.5,3007.1,0.1907]
[1764474236494,0.638,3007.9,3007.1,0.1907]
[1764474236694,0.638,3007.9,3007.2,0.212]
[1764474236917,0.638,3007.9,3006.9,0.4701]
[1764474236918,0.056,3007.8,3006.9,0.4701]
[1764474237115,0.056,3007.8,3006.5,1.17788827]
[1764474237116,0.489,3007.3,3006.6,0.4701]
[1764474237331,0.489,3007.3,3006.7,0.212]
[1764474237530,0.4788,3007.8,3006.8,0.24525794]
[1764474238135,0.81473433,3007.8,3006.8,0.24525794]
[1764474238426,6.64959936,3007.7,3006.8,4.007798]
[1764474238725,3.32479968,3007.7,3006.9,0.4701]
[1764474238974,0.72729022,3007.7,3006.9,0.4701]
[1764474239919,0.72729022,3007.7,3007.0,0.03325573]
[1764474240319,3.94804314,3007.9,3007.0,0.03325573]
[1764474240520,0.4788,3007.6,3007.0,0.212]
[1764474241816,6.79388628,3007.9,3007.1,0.1962]
[1764474242139,6.79388628,3007.9,3007.0,0.6821]
[1764474242140,0.81473433,3007.8,3007.0,0.212]
[1764474242349,6.64959936,3007.7,3007.0,0.212]
[1764474242649,0.71283994,3007.6,3007.0,0.212]
[1764474243010,1.19163994,3007.6,3006.9,0.212]
[1764474243225,0.71283994,3007.6,3006.9,0.212]
[1764474243426,0.4788,3007.5,3006.9,0.212]
[1764474243634,0.0704,3007.0,3006.6,0.001]
[1764474243829,0.2014,3006.7,3006.6,0.001]
[1764474244103,0.3452,3007.4,3006.6,0.001]
[1764474244309,0.3452,3007.4,3006.6,0.4834]
[1764474244806,0.3452,3007.4,3007.3,0.4824]
[1764474244807,0.33593433,3007.4,3007.3,0.4824]
[1764474245009,0.1446,3007.9,3007.3,0.8906]
[1764474245433,0.1446,3007.9,3007.4,0.03325131]
[1764474245621,6.65005419,3008.4,3007.4,0.03325131]
[1764474245827,0.89246542,3008.3,3007.4,0.50335131]
[1764474246136,1.37126542,3008.3,3007.4,0.03325131]
[1764474246341,0.4788,3008.2,3007.4,0.03325131]
[1764474246825,3.32435756,3008.1,3007.3,0.4082]
[1764474247024,0.38031576,3008.0,3007.3,0.4082]
[1764474247227,0.215,3007.4,3007.0,0.8834162]
[1764474247538,0.1446,3007.4,3006.8,0.03325794]
[1764474247743,0.1446,3007.4,3006.6,3.3602596]
[1764474247910,0.1446,3007.4,3006.6,3.8303596]
[1764474248241,0.1446,3007.4,3006.7,0.4701]
[1764474248441,0.1446,3007.4,3006.8,0.03325794]
[1764474249225,3.32524191,3007.3,3006.8,0.03325794]
[1764474249429,0.4788,3007.7,3006.8,0.03325794]
[1764474249430,0.1446,3007.8,3006.9,3.79578425]
[1764474250438,0.1446,3007.8,3006.9,0.4701]
[1764474250737,0.6234,3007.8,3006.9,0.4701]
[1764474250937,1.17233433,3007.8,3006.9,0.4701]
[1764474251121,1.95446434,3007.8,3006.9,0.4701]
[1764474251317,7.12839936,3007.7,3006.7,0.8834162]
[1764474251518,7.12839936,3007.7,3006.8,0.03325794]
[1764474251719,0.33593433,3007.5,3006.8,0.03325794]
[1764474251940,0.81473433,3007.6,3006.8,0.03325794]
[1764474252240,2.06480048,3007.6,3006.8,0.03325794]
[1764474252442,2.06480048,3007.6,3006.6,0.001]
[1764474252443,0.4748,3007.5,3006.6,0.001]
[1764474252632,0.4748,3007.5,3006.7,0.03325905]
[1764474252844,0.72559411,3008.2,3007.4,0.6786]
[1764474253140,0.4788,3008.2,3007.5,0.4824]
[1764474253514,0.4015942,3008.1,3007.5,0.4824]
[1764474253929,3.32414204,3008.3,3007.5,3.80732797]
[1764474254125,0.213,3008.2,3007.5,0.9525]
[1764474254333,0.213,3008.3,3007.5,4.2774912]
[1764474255018,0.213,3008.3,3007.5,0.9525]
[1764474255213,3.53721837,3008.3,3007.5,4.27749448]
[1764474255418,0.213,3008.3,3007.5,4.27749448]
[1764474255644,3.53713893,3008.3,3007.5,8.14155157]
[1764474256115,3.53713893,3008.3,3007.5,5.69994699]
[1764474256470,3.53713893,3008.3,3007.6,0.8834162]
[1764474256669,6.86127786,3008.3,3007.6,0.8834162]
[1764474257036,0.4788,3008.2,3007.6,0.8834162]
[1764474257236,3.32435756,3008.1,3007.6,0.8834162]
[1764474257432,3.53735756,3008.1,3007.6,0.8834162]
[1764474257633,3.53735756,3008.1,3007.7,0.8834162]
[1764474258266,0.0704,3007.8,3007.7,0.8834162]
[1764474258768,0.215,3007.8,3007.6,0.8834162]
[1764474258948,0.215,3007.8,3007.4,0.8834162]
[1764474259319,3.53977609,3007.8,3007.4,0.8834162]
[1764474259525,4.01457609,3007.8,3007.4,0.8834162]
[1764474259752,7.33935218,3007.8,3007.4,0.8834162]
[1764474259953,0.0047,3007.5,3007.3,0.8834162]
[1764474260161,0.6918,3007.7,3007.3,0.8834162]
[1764474260362,0.4934,3007.4,3007.2,0.8834162]
[1764474260673,0.489,3007.3,3007.2,0.8834162]
[1764474261167,0.7624,3007.3,3007.0,0.8834162]
[1764474261366,0.4934,3007.1,3006.9,0.8834162]
[1764474261572,3.81889644,3007.1,3006.9,0.8834162]
[1764474261875,3.32549644,3007.1,3006.9,0.8834162]
[1764474262073,0.489,3007.0,3006.9,0.8834162]
[1764474262531,0.489,3007.0,3006.6,3.32692514]
[1764474262532,0.489,3007.0,3006.8,0.8834162]
[1764474263054,0.489,3007.0,3006.6,1.65408827]
[1764474263055,0.489,3007.0,3006.7,0.8834162]
[1764474263434,3.38141716,3007.2,3006.8,0.8834162]
[1764474263633,0.213,3007.2,3006.8,0.8834162]
[1764474264274,0.6701,3007.2,3006.8,0.8834162]
[1764474264772,0.092,3006.9,3006.7,0.8834162]
[1764474265070,0.092,3006.9,3006.6,0.8844162]
[1764474265270,0.213,3007.2,3006.6,0.8844162]
[1764474265433,3.32546307,3007.1,3006.6,0.8844162]
[1764474266032,0.4672,3007.0,3006.6,0.8844162]
[1764474266629,6.86371472,3007.2,3006.6,0.8844162]
[1764474266848,7.55008619,3007.2,3006.6,0.8844162]
[1764474267067,7.55008619,3007.2,3006.6,0.001]
[1764474267650,0.89937147,3007.2,3006.6,0.001]
[1764474267979,3.53836487,3007.2,3006.6,0.001]
[1764474268147,6.86372974,3007.2,3006.6,0.001]
[1764474269078,14.21452292,3008.5,3007.1,0.4587]
[1764474269282,3.53679968,3007.7,3007.2,0.4587]
[1764474269578,3.32502078,3007.5,3007.2,0.4587]
[1764474269950,3.32502078,3007.5,3006.9,1.3578513]
[1764474270479,6.65004156,3007.5,3006.9,0.8880513]
[1764474270679,7.11724156,3007.5,3006.9,0.8880513]
[1764474270880,7.85016572,3007.5,3006.9,0.8880513]
[1764474271282,7.85016572,3007.5,3006.8,0.92130924]
[1764474273381,0.80313433,3007.4,3006.7,0.8880513]
[1764474273557,0.33593433,3007.3,3006.7,0.8880513]
[1764474273881,0.212,3007.2,3006.7,4.21395517]
[1764474274053,0.212,3007.2,3006.8,0.50305794]
[1764474275092,3.53737608,3007.2,3006.8,0.50305794]
[1764474275256,3.53737608,3007.2,3006.8,0.4698]
[1764474275456,0.212,3007.2,3006.8,0.4698]
[1764474276175,0.212,3007.2,3006.8,1.35736336]
[1764474277488,0.2137,3006.9,3006.6,0.88856336]
[1764474277990,3.32528857,3007.3,3006.8,0.4587]
[1764474278183,3.32528857,3007.3,3007.0,0.4587]
[1764474278184,3.53728857,3007.3,3007.0,0.4587]
[1764474279496,3.53728857,3007.3,3006.7,3.82895988]
[1764474280308,0.212,3007.5,3006.9,0.88756336]
[1764474280883,0.212,3007.5,3006.8,0.88756336]
[1764474281086,0.4672,3007.4,3006.8,0.88756336]
[1764474282498,3.32524191,3007.3,3006.8,0.88756336]
[1764474283264,3.32524191,3007.3,3006.8,4.21333819]
[1764474283465,3.32524191,3007.3,3006.8,4.68313819]
[1764474283703,3.32524191,3007.3,3006.8,1.35736336]
[1764474284131,0.4672,3007.2,3006.8,0.88756336]
[1764474284621,3.32535374,3007.2,3006.8,0.88756336]
[1764474286686,3.32524191,3007.3,3006.9,0.88756336]
[1764474287222,3.79244191,3007.3,3006.9,0.88756336]
[1764474287521,3.79244191,3007.3,3006.8,0.88756336]
[1764474287722,0.0825,3007.0,3006.8,0.88756336]
[1764474287933,0.0825,3007.0,3006.9,0.88756336]
[1764474288097,3.79244191,3007.3,3006.9,0.88756336]
[1764474288298,3.79244191,3007.3,3007.0,0.88756336]
[1764474289030,0.0825,3007.1,3007.0,0.88756336]
[1764474290620,3.32524191,3007.3,3007.0,1.34626336]
[1764474291228,3.32517286,3007.4,3007.0,0.88756336]
[1764474291408,7.11758464,3007.4,3007.0,0.88756336]
[1764474291727,0.0825,3007.1,3007.0,0.88756336]
[1764474292529,0.002,3007.6,3007.0,1.38446336]
[1764474292709,0.212,3007.5,3007.1,0.88756336]
[1764474293108,0.6986,3007.5,3007.0,0.88756336]
[1764474293406,4.02371115,3007.5,3007.0,0.88756336]
[1764474293609,0.4866,3007.4,3007.0,0.88756336]
[1764474295215,3.81178781,3007.4,3007.0,0.88756336]
[1764474295416,0.212,3007.3,3007.0,0.88756336]
[1764474295621,0.212,3007.3,3007.1,0.88756336]
[1764474296020,0.212,3007.4,3007.2,0.4969]
[1764474296528,0.002,3007.6,3007.2,0.4969]
[1764474296736,0.212,3007.5,3007.3,0.4969]
[1764474297297,0.002,3007.6,3007.4,4.29992625]
[1764474297520,0.002,3007.6,3007.5,1.38446336]
[1764474297834,0.002,3007.6,3007.5,1.86246336]
[1764474300668,0.002,3007.6,3007.5,5.18748414]
[1764474301374,0.002,3007.6,3007.5,4.29992078]
[1764474302144,0.002,3007.6,3007.5,4.29992078]
[1764474302763,0.002,3007.6,3007.5,5.17163281]
[1764474303068,0.002,3007.6,3007.5,5.38363281]
[1764474304261,0.002,3007.6,3007.4,0.88847132]
[1764474304262,0.8993,3007.6,3007.4,0.88847132]
[1764474304463,3.56787585,3007.5,3006.8,0.88847132]
[1764474304656,0.4653,3006.9,3006.6,0.001]
[1764474304831,0.6773,3006.9,3006.6,0.001]
[1764474305566,0.8041,3006.9,3006.6,0.001]
[1764474305749,3.91779997,3006.9,3006.6,0.001]